bitfinex/quotes_SOLUSD_20240814
["timestamp","ask_amount","ask_price","bid_price","bid_amount"]
[1723643353471,16.2466,148.09,147.97,55.33]
[1723643353648,16.2466,148.09,147.93,20.0]
[1723643353649,55.33,148.06,147.93,20.0]
[1723643353971,56.65340461,148.06,147.93,20.0]
[1723643354181,55.33,148.0,147.93,20.0]
[1723643354340,1.32340461,147.99,147.86,20.0]
[1723643354545,1.32340461,147.98,147.86,20.0]
[1723643354781,55.33,147.97,147.87,20.0]
[1723643355071,6.1856,147.99,147.87,75.33]
[1723643355370,6.1856,147.99,147.87,20.0]
[1723643355794,6.1856,147.99,147.84,61.9242]
[1723643355795,1.32340461,147.98,147.84,55.33]
[1723643356085,55.33,147.97,147.83,20.0]
[1723643356250,16.401,147.98,147.88,20.0]
[1723643356959,16.401,147.98,147.9,20.0]
[1723643357166,6.0922,148.04,147.92,20.0]
[1723643357167,22.1817,148.04,147.92,20.0]
[1723643357354,22.1817,148.04,147.93,45.0]
[1723643357555,22.1817,148.04,147.91,20.0]
[1723643357556,56.65340461,148.03,147.91,20.0]
[1723643357785,55.33,148.0,147.84,55.33]
[1723643357958,1.32340461,148.03,147.83,20.0]
[1723643357959,55.33,147.97,147.83,20.0]
[1723643358155,1.32340461,147.96,147.82,20.8477761]
[1723643358352,1.32340461,147.96,147.84,20.0]
[1723643358678,55.33,147.97,147.83,20.0]
[1723643358889,1.32340461,147.96,147.82,0.8477761]
[1723643359219,55.33,147.91,147.82,0.8477761]
[1723643359392,21.8915,147.93,147.82,0.8477761]
[1723643359562,21.8915,147.93,147.84,20.0]
[1723643359876,21.8915,147.93,147.82,0.8477761]
[1723643360479,55.33,147.89,147.82,0.8477761]
[1723643360691,55.33,147.91,147.82,0.8477761]
[1723643360886,62.0911,147.91,147.82,0.8477761]
[1723643361177,55.33,147.91,147.82,0.8477761]
[1723643361483,45.0,147.9,147.82,0.8477761]
[1723643361673,55.33,147.91,147.82,0.8477761]
[1723643362353,21.8915,147.93,147.82,0.8477761]
[1723643362657,21.8915,147.93,147.82,56.1777761]
[1723643362857,21.8915,147.93,147.83,20.0]
[1723643363062,6.5428,147.98,147.85,75.33]
[1723643363268,6.5428,147.98,147.86,65.0]
[1723643363486,6.5428,147.98,147.86,20.0]
[1723643363658,6.7596,147.94,147.82,0.8477761]
[1723643363866,1.32340461,147.93,147.82,0.8477761]
[1723643364062,1.32340461,147.92,147.82,0.8477761]
[1723643364482,55.33,147.95,147.82,0.8477761]
[1723643364658,55.33,147.95,147.82,20.8477761]
[1723643364868,61.8728,147.98,147.82,56.1777761]
[1723643365067,1.32340461,147.97,147.83,20.0]
[1723643365369,6.7586,147.96,147.83,20.0]
[1723643365568,61.8728,147.98,147.83,40.0]
[1723643365774,61.8728,147.98,147.85,20.0]
[1723643366083,1.32340461,147.97,147.86,20.0]
[1723643366395,6.7581,147.97,147.86,20.0]
[1723643366710,8.08200461,147.96,147.83,20.0]
[1723643366900,55.33,147.94,147.82,0.8477761]
[1723643367200,55.33,147.91,147.82,0.8477761]
[1723643367399,56.65340461,147.91,147.82,0.8477761]
[1723643367603,55.33,147.88,147.82,0.8477761]
[1723643367892,55.33,147.85,147.82,0.8477761]
[1723643368097,56.65340461,147.85,147.82,0.8477761]
[1723643368980,63.41710461,147.85,147.82,0.8477761]
[1723643369281,55.33,147.85,147.82,0.8477761]
[1723643369482,62.0936,147.85,147.82,0.8477761]
[1723643369688,55.33,147.85,147.82,0.8477761]
[1723643369868,1.32340461,147.84,147.82,0.8477761]
[1723643370186,6.2392,147.86,147.82,0.8477761]
[1723643370590,56.65340461,147.85,147.82,0.8477761]
[1723643370788,63.41700461,147.85,147.82,0.8477761]
[1723643370997,45.0,147.84,147.68,7.04926369]
[1723643371297,55.33,147.79,147.68,7.04926369]
[1723643371679,1.32340461,147.78,147.68,7.04926369]
[1723643371874,16.77840461,147.77,147.67,0.8477761]
[1723643372077,1.32340461,147.76,147.67,0.8477761]
[1723643372397,6.7695,147.72,147.67,0.8477761]
[1723643372598,1.32340461,147.74,147.67,0.8477761]
[1723643372768,6.2301,147.76,147.67,0.8477761]
[1723643373278,7.55350461,147.76,147.67,0.8477761]
[1723643373692,6.2301,147.76,147.67,0.8477761]
[1723643374072,7.55350461,147.76,147.67,0.8477761]
[1723643374675,56.65340461,147.75,147.67,0.8477761]
[1723643375080,63.42170461,147.75,147.67,0.8477761]
[1723643375289,6.7686,147.74,147.67,0.8477761]
[1723643375486,6.7691,147.73,147.67,0.8477761]
[1723643375899,55.33,147.72,147.67,0.8477761]
[1723643377583,55.33,147.72,147.57,7.05243457]
[1723643377584,15.7749,147.65,147.57,7.05243457]
[1723643377808,15.7749,147.65,147.55,2.002]
[1723643377809,1.32340461,147.64,147.55,2.002]
[1723643378597,6.7741,147.62,147.55,2.002]
[1723643378803,1.32340461,147.63,147.55,2.002]
[1723643378976,15.7749,147.65,147.55,2.002]
[1723643379187,1.32340461,147.64,147.55,57.332]
[1723643379519,15.2603,147.58,147.52,0.8477761]
[1723643379705,6.6071,147.56,147.38,20.0]
[1723643379882,1.32340461,147.55,147.39,1.55079332]
[1723643380080,6.7779,147.54,147.43,55.33]
[1723643380391,15.2603,147.5,147.39,55.33]
[1723643380595,15.2603,147.5,147.45,55.33]
[1723643380893,15.2603,147.5,147.4,8.06300389]
[1723643381202,21.8674,147.56,147.37,20.8477761]
[1723643381378,8.10080461,147.55,147.37,2.39877989]
[1723643381576,1.32340461,147.54,147.46,55.33]
[1723643381787,1.32340461,147.54,147.49,55.33]
[1723643381985,8.10160461,147.54,147.43,55.33]
[1723643382192,1.32340461,147.54,147.46,55.33]
[1723643382525,1.32340461,147.54,147.37,0.8477761]
[1723643382692,1.32340461,147.54,147.47,55.33]
[1723643382889,21.8674,147.56,147.47,55.33]
[1723643383098,21.8674,147.56,147.37,0.8477761]
[1723643383099,6.7774,147.55,147.44,55.33]
[1723643383429,21.8674,147.56,147.47,55.33]
[1723643383710,21.8674,147.56,147.5,55.33]
[1723643383923,21.8674,147.56,147.47,55.33]
[1723643384242,21.8674,147.56,147.5,55.33]
[1723643384431,1.32340461,147.63,147.53,55.33]
[1723643384583,22.1459,147.64,147.49,55.33]
[1723643384584,22.1459,147.64,147.58,55.33]
[1723643384908,6.7745,147.62,147.48,45.0]
[1723643385121,6.7745,147.62,147.49,75.33]
[1723643385122,1.32340461,147.62,147.49,75.33]
[1723643385286,1.32340461,147.62,147.52,55.33]
[1723643385806,6.7747,147.61,147.49,55.33]
[1723643386008,22.1459,147.64,147.49,55.33]
[1723643386009,1.32340461,147.6,147.49,55.33]
[1723643386413,1.32340461,147.6,147.46,55.33]
[1723643386814,6.7752,147.6,147.46,55.33]
[1723643387013,6.7742,147.62,147.49,55.33]
[1723643387228,1.32340461,147.61,147.52,55.33]
[1723643387642,26.774,147.63,147.52,55.33]
[1723643387804,1.32340461,147.63,147.52,55.33]
[1723643388127,6.7747,147.61,147.55,55.33]
[1723643388321,1.32340461,147.6,147.52,55.33]
[1723643388701,42.4159,147.64,147.52,55.33]
[1723643388702,6.7744,147.62,147.52,55.33]
[1723643388903,27.151742,147.63,147.52,55.33]
[1723643388904,1.32340461,147.61,147.52,55.33]
[1723643389105,1.32340461,147.61,147.49,55.33]
[1723643389106,6.7769,147.56,147.49,55.33]
[1723643389427,1.32340461,147.58,147.49,55.33]
[1723643389612,7.04736498,147.55,147.49,55.33]
[1723643389930,20.27,147.6,147.49,55.33]
[1723643390132,7.05019375,147.57,147.49,55.33]
[1723643390337,22.1941,147.55,147.44,8.06300389]
[1723643390628,1.32340461,147.54,147.46,55.33]
[1723643391106,6.7802,147.49,147.42,55.33]
[1723643391307,22.526,147.47,147.37,0.8477761]
[1723643391507,1.32340461,147.46,147.37,56.1777761]
[1723643391748,17.06800461,147.47,147.4,55.33]
[1723643391934,15.7446,147.47,147.4,55.33]
[1723643392228,1.32340461,147.46,147.4,55.33]
[1723643392435,1.32340461,147.45,147.4,55.33]
[1723643392818,15.7446,147.47,147.4,55.33]
[1723643393034,15.7446,147.47,147.43,55.33]
[1723643393225,1.32340461,147.46,147.43,55.33]
[1723643393424,17.06800461,147.47,147.4,55.33]
[1723643393735,15.7446,147.47,147.4,55.33]
[1723643394053,1.32340461,147.46,147.4,55.33]
[1723643394222,1.32340461,147.45,147.4,55.33]
[1723643394418,1.32340461,147.45,147.37,0.8477761]
[1723643394620,1.32340461,147.45,147.39,55.33]
[1723643394823,24.12422374,147.47,147.39,55.33]
[1723643395141,1.32340461,147.46,147.39,38.6634]
[1723643395357,22.80081913,147.47,147.39,38.6634]
[1723643395560,1.32340461,147.46,147.39,38.6634]
[1723643395837,1.32340461,147.45,147.39,5.3302]
[1723643396062,6.99100461,147.45,147.37,0.8477761]
[1723643396335,1.32340461,147.44,147.37,0.8477761]
[1723643396540,8.10590461,147.44,147.37,0.8477761]
[1723643396846,8.10670461,147.43,147.37,0.8477761]
[1723643397039,6.7833,147.43,147.37,0.8477761]
[1723643397243,5.6676,147.45,147.37,0.8477761]
[1723643397422,21.32340461,147.44,147.37,0.8477761]
[1723643397624,28.10600461,147.44,147.37,0.8477761]
[1723643397819,20.0,147.44,147.37,0.8477761]
[1723643398140,1.32340461,147.43,147.37,0.8477761]
[1723643398530,6.7828,147.43,147.37,0.8477761]
[1723643398738,28.10620461,147.44,147.37,0.8477761]
[1723643399331,1.32340461,147.43,147.37,0.8477761]
[1723643399516,6.784,147.41,147.37,0.8477761]
[1723643399718,1.32340461,147.4,147.37,0.8477761]
[1723643400225,1.32340461,147.39,147.37,0.8477761]
[1723643400439,21.32340461,147.44,147.37,0.8477761]
[1723643400619,1.32340461,147.43,147.39,55.33]
[1723643400826,6.3539,147.48,147.39,55.33]
[1723643400827,1.32340461,147.42,147.39,55.33]
[1723643401030,6.7824,147.44,147.37,0.8477761]
[1723643401031,1.32340461,147.44,147.37,0.8477761]
[1723643401233,6.7833,147.42,147.37,0.8477761]
[1723643401547,6.7838,147.41,147.37,0.8477761]
[1723643401746,24.00911675,147.46,147.37,0.8477761]
[1723643401747,20.0,147.45,147.37,0.8477761]
[1723643401924,6.7833,147.42,147.37,0.8477761]
[1723643402122,1.32340461,147.42,147.37,7.6331761]
[1723643402334,1.32340461,147.41,147.37,0.8477761]
[1723643402549,1.32340461,147.44,147.4,6.7841]
[1723643402852,7.67730461,147.48,147.41,55.33]
[1723643403030,7.67730461,147.48,147.44,55.33]
[1723643403221,7.98900461,147.57,147.47,55.33]
[1723643403420,7.05173181,147.56,147.5,6.7795]
[1723643403732,6.6656,147.57,147.55,55.33]
[1723643403922,6.6656,147.57,147.56,45.0]
[1723643404130,1.32340461,147.61,147.55,55.33]
[1723643404328,6.3078,147.63,147.56,45.0]
[1723643404623,6.7753,147.6,147.55,55.33]
[1723643404836,1.32340461,147.59,147.52,55.33]
[1723643405037,1.32340461,147.59,147.53,45.0]
[1723643405242,1.32340461,147.62,147.55,55.33]
[1723643405433,6.3078,147.63,147.56,45.0]
[1723643405622,6.3078,147.63,147.58,55.33]
[1723643405822,34.7697,147.69,147.61,55.33]
[1723643406016,34.7697,147.69,147.56,100.33]
[1723643406017,20.0,147.68,147.56,45.0]
[1723643406217,1.32340461,147.67,147.58,55.33]
[1723643406425,1.32340461,147.67,147.61,55.33]
[1723643406641,6.7718,147.68,147.61,55.33]
[1723643406844,6.5697,147.69,147.64,55.33]
[1723643407353,27.14271,147.74,147.65,45.0]
[1723643407354,1.32340461,147.73,147.65,45.0]
[1723643407531,7.05116737,147.74,147.7,55.33]
[1723643407731,27.133484,147.79,147.65,45.0]
[1723643407732,1.32340461,147.79,147.73,55.33]
[1723643407934,6.4749,147.83,147.73,55.33]
[1723643407935,6.7672,147.77,147.73,55.33]
[1723643408143,7.04912838,147.8,147.76,55.33]
[1723643408339,6.763,147.87,147.79,55.33]
[1723643408540,7.04656178,147.88,147.79,55.33]
[1723643408952,6.7631,147.86,147.79,55.33]
[1723643409261,7.04656178,147.88,147.79,55.33]
[1723643409425,20.0,147.78,147.57,16.4549]
[1723643409625,7.72910461,147.77,147.67,55.33]
[1723643409825,1.32340461,147.76,147.7,55.33]
[1723643410053,6.7677,147.76,147.7,55.33]
[1723643410257,1.32340461,147.77,147.73,55.33]
[1723643410553,21.32340461,147.83,147.73,55.33]
[1723643410761,21.32340461,147.83,147.76,55.33]
[1723643410762,1.32340461,147.82,147.76,55.33]
[1723643410957,1.32340461,147.83,147.76,55.33]
[1723643411254,1.32340461,147.83,147.7,55.33]
[1723643411255,6.4057,147.85,147.79,55.33]
[1723643411440,6.7627,147.87,147.8,45.0]
[1723643411798,6.5508,147.92,147.82,55.33]
[1723643412056,7.0429121,147.91,147.8,45.0]
[1723643412260,7.0429121,147.91,147.76,55.33]
[1723643412261,6.7646,147.83,147.76,55.33]
[1723643412554,1.32340461,147.88,147.68,55.33]
[1723643412555,6.7677,147.76,147.68,55.33]
[1723643412759,1.32340461,147.75,147.68,55.33]
[1723643412933,1.32340461,147.78,147.71,55.33]
[1723643413539,6.7676,147.77,147.71,55.33]
[1723643413739,6.7663,147.8,147.71,55.33]
[1723643413953,1.32340461,147.81,147.71,55.33]
[1723643414131,1.32340461,147.79,147.68,55.33]
[1723643414460,1.32340461,147.79,147.65,55.33]
[1723643414461,6.769,147.74,147.65,55.33]
[1723643414628,1.32340461,147.73,147.65,55.33]
[1723643415031,6.7697,147.72,147.65,55.33]
[1723643415233,6.7723,147.66,147.57,16.3944]
[1723643415430,1.32340461,147.65,147.57,16.3944]
[1723643415647,6.7723,147.66,147.56,55.33]
[1723643415852,1.32340461,147.67,147.56,55.33]
[1723643416276,6.7737,147.63,147.56,55.33]
[1723643416477,6.7737,147.63,147.49,61.3579]
[1723643416478,1.32340461,147.62,147.49,55.33]
[1723643416645,1.32340461,147.62,147.55,55.33]
[1723643416846,1.32340461,147.65,147.58,55.33]
[1723643417151,1.32340461,147.64,147.58,55.33]
[1723643417366,1.32340461,147.64,147.55,55.33]
[1723643417570,1.32340461,147.64,147.52,55.33]
[1723643417878,1.32340461,147.64,147.55,55.33]
[1723643418179,6.3769,147.66,147.61,55.33]
[1723643418567,20.0,147.73,147.64,55.33]
[1723643418568,1.32340461,147.72,147.64,55.33]
[1723643418873,7.73990461,147.73,147.67,55.33]
[1723643419088,6.4165,147.73,147.67,55.33]
[1723643419251,6.4165,147.73,147.63,55.33]
[1723643419652,6.0936,147.8,147.69,55.33]
[1723643419875,1.32340461,147.79,147.69,55.33]
[1723643420194,6.0936,147.8,147.72,55.33]
[1723643420351,1.32340461,147.79,147.75,55.33]
[1723643420552,6.0936,147.86,147.75,55.33]
[1723643420770,6.7654,147.82,147.75,55.33]
[1723643420969,1.32340461,147.85,147.75,55.33]
[1723643421285,1.32340461,147.85,147.7,55.33]
[1723643421286,20.0,147.83,147.7,55.33]
[1723643421580,6.7673,147.77,147.7,55.33]
[1723643421818,18.23710461,147.81,147.67,55.33]
[1723643422080,6.7665,147.79,147.7,55.33]
[1723643422294,7.04549109,147.81,147.7,55.33]
[1723643422454,21.32340461,147.8,147.7,55.33]
[1723643422648,6.7677,147.76,147.7,55.33]
[1723643422847,1.32340461,147.75,147.7,55.33]
[1723643423057,1.32340461,147.76,147.7,55.33]
[1723643423385,1.32340461,147.76,147.63,55.33]
[1723643423889,40.0,147.8,147.69,55.33]
[1723643423890,1.32340461,147.79,147.69,55.33]
[1723643424088,1.32340461,147.79,147.72,55.33]
[1723643424260,28.08970461,147.8,147.72,55.33]
[1723643424459,6.7678,147.76,147.69,55.33]
[1723643424686,1.32340461,147.79,147.69,55.33]
[1723643424876,1.32340461,147.79,147.63,55.33]
[1723643424877,6.7669,147.78,147.72,55.33]
[1723643425079,1.32340461,147.8,147.72,55.33]
[1723643425391,6.7663,147.79,147.72,55.33]
[1723643425680,8.3688957,147.81,147.72,55.33]
[1723643425889,7.04549109,147.81,147.72,55.33]
[1723643426103,6.7645,147.83,147.73,45.0]
[1723643426390,6.765,147.82,147.73,45.0]
[1723643426559,1.32340461,147.81,147.72,55.33]
[1723643426763,7.04425975,147.83,147.73,45.0]
[1723643426983,1.32340461,147.82,147.7,55.33]
[1723643427172,6.7682,147.75,147.67,55.33]
[1723643427372,7.04577732,147.82,147.7,55.33]
[1723643427572,1.32340461,147.8,147.73,55.33]
[1723643427871,7.04577732,147.82,147.73,55.33]
[1723643428068,21.32340461,147.81,147.73,55.33]
[1723643428275,21.32340461,147.81,147.67,55.33]
[1723643428573,6.7663,147.79,147.67,55.33]
[1723643428766,1.32340461,147.78,147.67,55.33]
[1723643428969,1.32340461,147.78,147.7,55.33]
[1723643429494,1.32340461,147.77,147.67,55.33]
[1723643429694,6.7686,147.74,147.63,55.33]
[1723643429865,1.32340461,147.73,147.63,55.33]
[1723643430068,58.24620461,147.73,147.6,55.33]
[1723643430268,36.927,147.7,147.56,55.33]
[1723643430469,21.32340461,147.69,147.56,55.33]
[1723643430695,21.32340461,147.69,147.59,55.33]
[1723643430874,1.32340461,147.69,147.59,55.33]
[1723643431075,1.32340461,147.69,147.56,55.33]
[1723643431263,6.7732,147.64,147.56,55.33]
[1723643431594,20.0,147.71,147.61,55.33]
[1723643431768,6.77,147.71,147.61,55.33]
[1723643431967,6.7696,147.72,147.61,55.33]
[1723643432289,6.7742,147.62,147.55,55.33]
[1723643432472,20.0,147.68,147.55,55.33]
[1723643432473,1.32340461,147.61,147.55,55.33]
[1723643432665,20.0,147.66,147.55,55.33]
[1723643432984,6.7755,147.59,147.5,15.684]
[1723643433293,6.5562,147.64,147.46,55.33]
[1723643433294,1.32340461,147.58,147.46,55.33]
[1723643433494,6.7773,147.56,147.46,55.33]
[1723643433794,1.32340461,147.56,147.46,55.33]
[1723643434339,6.7806,147.48,147.37,0.8477761]
[1723643434519,20.0,147.52,147.37,0.8477761]
[1723643434520,1.32340461,147.47,147.37,56.1777761]
[1723643435006,1.32340461,147.47,147.37,62.9630761]
[1723643435169,8.10470461,147.47,147.37,56.1777761]
[1723643435481,20.0,147.51,147.37,62.9632761]
[1723643435688,1.32340461,147.5,147.4,55.33]
[1723643435873,21.32340461,147.5,147.37,56.1777761]
[1723643436073,20.0,147.49,147.4,55.33]
[1723643436299,1.32340461,147.49,147.4,62.1141]
[1723643436467,1.32340461,147.5,147.42,6.7832]
[1723643436673,6.3239,147.55,147.42,55.33]
[1723643436674,20.0,147.54,147.42,55.33]
[1723643437012,1.32340461,147.54,147.45,55.33]
[1723643437310,6.6294,147.61,147.37,0.8477761]
[1723643437466,1.32340461,147.6,147.42,55.33]
[1723643437673,27.0506122,147.57,147.43,45.0]
[1723643437975,75.33,147.54,147.38,55.33]
[1723643438182,20.0,147.52,147.37,0.8477761]
[1723643438493,6.0789,147.48,147.37,0.8477761]
[1723643438684,1.32340461,147.47,147.37,0.8477761]
[1723643439073,20.0,147.46,147.37,0.8477761]
[1723643439502,1.32340461,147.45,147.37,0.8477761]
[1723643439684,1.32340461,147.44,147.37,0.8477761]
[1723643440478,20.0,147.47,147.37,0.8477761]
[1723643440698,1.32340461,147.44,147.37,0.8477761]
[1723643441791,20.0,147.46,147.37,0.8477761]
[1723643442292,20.0,147.44,147.37,0.8477761]
[1723643442605,20.0,147.42,147.37,0.8477761]
[1723643442779,20.0,147.41,147.37,0.8477761]
[1723643443131,1.32340461,147.4,147.37,0.8477761]
[1723643443286,20.0,147.33,147.22,0.8477761]
[1723643443486,1.32340461,147.32,147.22,0.8477761]
[1723643443685,6.7898,147.28,147.22,0.8477761]
[1723643444001,28.381164,147.32,147.22,0.8477761]
[1723643444002,1.32340461,147.27,147.22,0.8477761]
[1723643444192,1.32340461,147.26,147.22,0.8477761]
[1723643444399,6.0005,147.25,147.22,0.8477761]
[1723643444597,1.32340461,147.24,147.22,0.8477761]
[1723643444794,1.32340461,147.23,147.22,0.8477761]
[1723643445193,7.32390461,147.25,147.22,0.8477761]
[1723643445610,6.0005,147.25,147.22,0.8477761]
[1723643445914,1.32340461,147.24,147.22,0.8477761]
[1723643446114,1.32340461,147.3,147.23,55.33]
[1723643446291,1.32340461,147.3,147.22,0.8477761]
[1723643446487,1.32340461,147.29,147.23,55.33]
[1723643447112,1.32340461,147.3,147.23,55.33]
[1723643447301,6.1336,147.31,147.23,55.33]
[1723643447479,6.1336,147.31,147.22,0.8477761]
[1723643447480,1.32340461,147.3,147.22,0.8477761]
[1723643447683,20.0,147.28,147.22,0.8477761]
[1723643447909,1.32340461,147.27,147.22,0.8477761]
[1723643448113,1.32340461,147.26,147.22,0.8477761]
[1723643448283,21.32340461,147.26,147.22,0.8477761]
[1723643448484,20.0,147.24,147.22,0.8477761]
[1723643448684,20.0,147.24,147.16,55.33]
[1723643448685,1.32340461,147.23,147.13,55.33]
[1723643448910,1.32340461,147.23,147.13,62.1264]
[1723643449122,20.0,147.22,147.13,62.1264]
[1723643449304,20.0,147.24,147.14,6.7962]
[1723643449498,20.0,147.24,147.13,62.1265]
[1723643449691,20.0,147.24,147.13,55.33]
[1723643449896,1.32340461,147.23,147.13,55.33]
[1723643450093,20.0,147.22,147.13,55.33]
[1723643450417,20.0,147.2,147.13,55.33]
[1723643450583,1.32340461,147.19,147.07,0.8477761]
[1723643450786,1.32340461,147.19,147.11,62.1275]
[1723643451006,7.96450461,147.19,147.11,55.33]
[1723643451215,20.0,147.17,147.08,10.0]
[1723643451515,1.32340461,147.16,147.08,10.0]
[1723643451923,1.32340461,147.18,147.11,62.1275]
[1723643452239,6.6411,147.19,147.08,10.0]
[1723643452240,6.6411,147.19,147.14,55.33]
[1723643453303,1.32340461,147.24,147.17,55.33]
[1723643453506,6.1774,147.25,147.17,55.33]
[1723643453896,1.32340461,147.24,147.2,55.33]
[1723643454099,6.1774,147.25,147.2,55.33]
[1723643454325,21.32340461,147.24,147.14,55.33]
[1723643454527,1.32340461,147.23,147.14,55.33]
[1723643454830,1.32340461,147.23,147.15,45.0]
[1723643455003,1.32340461,147.23,147.15,51.7954]
[1723643455307,21.32340461,147.23,147.11,62.1274]
[1723643455510,1.32340461,147.23,147.11,55.33]
[1723643455713,21.32340461,147.23,147.11,62.1272]
[1723643456031,1.32340461,147.23,147.14,55.33]
[1723643456323,1.32340461,147.23,147.13,55.33]
[1723643456522,20.0,147.23,147.13,55.33]
[1723643456869,1.32340461,147.22,147.08,10.0]
[1723643457015,20.0,147.2,147.08,16.7985]
[1723643457323,1.32340461,147.19,147.08,10.0]
[1723643457629,1.32340461,147.19,147.1,55.33]
[1723643457916,1.32340461,147.18,147.13,55.33]
[1723643458122,21.32340461,147.24,147.14,6.7962]
[1723643458322,26.1774,147.25,147.08,10.0]
[1723643458323,1.32340461,147.23,147.16,55.33]
[1723643458502,1.32340461,147.23,147.08,10.0]
[1723643458503,1.32340461,147.23,147.13,6.7965]
[1723643458702,1.32340461,147.23,147.08,10.0]
[1723643458703,1.32340461,147.23,147.14,45.0]
[1723643458899,21.32340461,147.23,147.11,6.7976]
[1723643459319,21.32340461,147.23,147.13,55.33]
[1723643459715,1.32340461,147.23,147.13,55.33]
[1723643459909,1.32340461,147.23,147.1,55.33]
[1723643460229,1.32340461,147.23,147.16,55.33]
[1723643460412,7.04915547,147.26,147.22,55.33]
[1723643460615,6.5533,147.31,147.14,71.5502]
[1723643460616,1.32340461,147.25,147.21,55.33]
[1723643460933,1.32340461,147.3,147.24,55.33]
[1723643461129,6.5533,147.31,147.24,55.33]
[1723643461434,7.87670461,147.31,147.22,45.0]
[1723643461618,6.5533,147.31,147.24,55.33]
[1723643461816,6.5533,147.31,147.25,45.0]
[1723643462019,6.5533,147.31,147.27,55.33]
[1723643462317,27.71940461,147.38,147.28,45.0]
[1723643462506,1.32340461,147.37,147.28,45.0]
[1723643462713,20.0,147.34,147.22,55.33]
[1723643462917,20.0,147.32,147.19,62.1239]
[1723643463118,20.0,147.3,147.19,55.33]
[1723643463322,1.32340461,147.29,147.19,55.33]
[1723643463527,1.32340461,147.29,147.14,16.2202]
[1723643463528,6.0314,147.27,147.16,62.1252]
[1723643463705,1.32340461,147.26,147.16,55.33]
[1723643463912,1.32340461,147.26,147.17,6.7944]
[1723643464113,1.32340461,147.26,147.19,62.1237]
[1723643464359,6.3581,147.34,147.22,55.33]
[1723643464538,1.32340461,147.33,147.28,62.1197]
[1723643464721,20.0,147.44,147.21,55.33]
[1723643464722,1.32340461,147.37,147.31,55.33]
[1723643464909,6.3581,147.4,147.31,55.33]
[1723643465109,6.3581,147.4,147.21,55.33]
[1723643465110,1.32340461,147.39,147.29,55.33]
[1723643465341,20.0,147.38,147.3,45.0]
[1723643465633,1.32340461,147.37,147.3,45.0]
[1723643465946,21.32340461,147.38,147.3,45.0]
[1723643466142,1.32340461,147.38,147.3,45.0]
[1723643466440,1.32340461,147.38,147.28,55.33]
[1723643466441,20.0,147.38,147.29,45.0]
[1723643466620,1.32340461,147.38,147.31,55.33]
[1723643466822,1.32340461,147.38,147.21,55.33]
[1723643466823,26.7852,147.38,147.28,55.33]
[1723643467028,1.32340461,147.37,147.28,55.33]
[1723643467231,1.32340461,147.37,147.29,45.0]
[1723643467611,26.7861,147.36,147.21,55.33]
[1723643467942,1.32340461,147.35,147.21,55.33]
[1723643468114,1.32340461,147.35,147.25,55.33]
[1723643468313,1.32340461,147.34,147.25,55.33]
[1723643468711,1.32340461,147.34,147.25,62.1211]
[1723643468909,1.32340461,147.38,147.28,55.33]
[1723643469125,7.68150461,147.4,147.34,55.33]
[1723643469323,7.68150461,147.4,147.35,45.0]
[1723643469324,1.32340461,147.39,147.35,45.0]
[1723643469540,6.3581,147.4,147.35,45.0]
[1723643469748,1.32340461,147.44,147.35,45.0]
[1723643469926,20.0,147.43,147.35,45.0]
[1723643470119,1.32340461,147.42,147.35,45.0]
[1723643470318,6.3458,147.45,147.35,51.7864]
[1723643470517,6.3458,147.45,147.37,55.33]